fUST/lending_fUST_20250920
["ID","MTS","AMOUNT","RATE_DAILY","PERIOD"]
[386546917,1758377441745,-480.0,0.00020777,2]
[386546918,1758377441755,-480.0,0.00020777,2]
[386546919,1758377441765,-480.0,0.00020777,2]
[386546920,1758377441775,-519.85646042,0.00020777,2]
[386546921,1758377441785,-480.0,0.00020777,2]
[386546922,1758377441794,-480.0,0.00020777,2]
[386546923,1758377441804,-483.2848272,0.00020777,2]
[386546924,1758377441813,-176.49884126,0.00020777,2]
[386546925,1758377441829,-303.50115874,0.00020777,2]
[386546926,1758377441838,-331.3347461,0.00020777,2]
[386546927,1758377441850,-148.6652539,0.00020777,2]
[386546928,1758377441859,-321.36412013,0.00020777,2]
[386546931,1758377443050,-480.0,0.00020682,2]
[386546932,1758377443060,-158.63587987,0.00020777,2]
[386546933,1758377443070,-480.0,0.00020777,2]
[386546934,1758377443079,-392.71591059,0.00020777,2]
[386546935,1758377443089,-480.0,0.00020777,2]
[386546936,1758377443098,-480.0,0.00020777,2]
[386546937,1758377443108,-480.0,0.00020777,2]
[386546938,1758377443117,-480.0,0.00020777,2]
[386546939,1758377443127,-480.0,0.00020777,2]
[386546940,1758377443141,-524.80016451,0.00020777,2]
[386546942,1758377443151,-480.0,0.00020777,2]
[386546944,1758377443161,-480.0,0.00020777,2]
[386546946,1758377443171,-481.92061712,0.00020777,2]
[386546947,1758377443180,-480.0,0.00020777,2]
[386546948,1758377443189,-480.0,0.00020777,2]
[386546949,1758377443199,-480.0,0.00020777,2]
[386546950,1758377443209,-480.0,0.00020777,2]
[386546951,1758377443218,-480.0,0.00020777,2]
[386546952,1758377443228,-480.0,0.00020777,2]
[386546953,1758377443238,-480.0,0.00020777,2]
[386546954,1758377443248,-211.09088569,0.00020777,2]
[386546955,1758377443258,-480.0,0.00020777,2]
[386546956,1758377443268,-480.0,0.00020777,2]
[386546957,1758377443277,-480.0,0.00020777,2]
[386546958,1758377443287,-777.784985,0.00020777,2]
[386546959,1758377443296,-777.784985,0.00020777,2]
[386546960,1758377443306,-480.0,0.00020777,2]
[386546961,1758377443316,-777.784985,0.00020777,2]
[386546962,1758377443326,-151.0,0.00020777,2]
[386546963,1758377443336,-777.784985,0.00020777,2]
[386546964,1758377443346,-151.0,0.00020777,2]
[386546965,1758377443355,-1019.858245,0.00020777,2]
[386546966,1758377443365,-1019.858245,0.00020777,2]
[386546967,1758377443374,-1019.858245,0.00020777,2]
[386546968,1758377443384,-158.694397,0.00020777,2]
[386546969,1758377443394,-480.0,0.00020777,2]
[386546970,1758377443404,-441.90266845,0.00020777,2]
[386546982,1758377446049,-480.0,0.00020684,2]
[386546983,1758377446059,-577.95557655,0.00020777,2]
[386546984,1758377446068,-171.691318,0.00020777,2]
[386546985,1758377446078,-171.691318,0.00020777,2]
[386546986,1758377446087,-171.691318,0.00020777,2]
[386546987,1758377446096,-151.0,0.00020777,2]
[386546988,1758377446105,-506.349231,0.00020777,2]
[386546989,1758377446115,-171.691318,0.00020777,2]
[386546990,1758377446124,-506.349231,0.00020777,2]
[386546991,1758377446134,-506.349231,0.00020777,2]
[386546992,1758377446144,-506.349231,0.00020777,2]
[386546993,1758377446153,-151.0,0.00020777,2]
[386546995,1758377446163,-151.0,0.00020777,2]
[386546997,1758377446172,-151.0,0.00020777,2]
[386546999,1758377446182,-480.0,0.00020777,2]
[386547000,1758377446191,-151.0,0.00020777,2]
[386547001,1758377446202,-151.0,0.00020777,2]
[386547002,1758377446212,-151.0,0.00020777,2]
[386547003,1758377446222,-480.0,0.00020777,2]
[386547004,1758377446231,-480.367995,0.00020777,2]
[386547005,1758377446242,-480.367995,0.00020777,2]
[386547006,1758377446251,-480.367995,0.00020777,2]
[386547007,1758377446261,-480.367995,0.00020777,2]
[386547008,1758377446270,-550.078197,0.00020777,2]
[386547009,1758377446280,-550.078197,0.00020777,2]
[386547010,1758377446290,-550.078197,0.00020777,2]
[386547011,1758377446300,-151.0,0.00020777,2]
[386547012,1758377446309,-550.078197,0.00020777,2]
[386547013,1758377446318,-151.0,0.00020777,2]
[386547014,1758377446328,-151.0,0.00020777,2]
[386547015,1758377446337,-204.691914,0.00020777,2]
[386547016,1758377446346,-204.691914,0.00020777,2]
[386547017,1758377446356,-204.691914,0.00020777,2]
[386547018,1758377446365,-151.0,0.00020777,2]
[386547019,1758377446374,-204.691914,0.00020777,2]
[386547020,1758377446383,-290.972736,0.00020777,2]
[386547021,1758377446393,-151.0,0.00020777,2]
[386547022,1758377446402,-480.0,0.00020778,2]
[386547023,1758377446411,-480.0,0.00020778,2]
[386547024,1758377446420,-480.0,0.00020778,2]
[386547025,1758377446429,-480.0,0.00020778,2]
[386547026,1758377446439,-482.94939161,0.00020778,2]
[386547027,1758377446448,-480.0,0.00020778,2]
[386547028,1758377446457,-480.0,0.00020778,2]
[386547029,1758377446466,-480.0,0.00020778,2]
[386547030,1758377446476,-480.0,0.00020778,2]
[386547031,1758377446485,-480.0,0.00020778,2]
[386547032,1758377446494,-480.0,0.00020778,2]
[386547033,1758377446504,-401.22332992,0.00020778,2]
[386547034,1758377447158,-78.77667008,0.00020778,2]
[386547035,1758377447167,-452.85973366,0.00020778,2]
[386547036,1758377447176,-480.0,0.00020778,2]
[386547037,1758377447185,-480.0,0.00020778,2]
[386547038,1758377447195,-480.0,0.00020778,2]
[386547039,1758377447204,-480.0,0.00020778,2]
[386547040,1758377447214,-480.0,0.00020778,2]
[386547041,1758377447223,-482.75257866,0.00020778,2]
[386547042,1758377447232,-480.0,0.00020778,2]
[386547043,1758377447242,-480.0,0.00020778,2]
[386547044,1758377447251,-480.0,0.00020778,2]
[386547045,1758377447261,-11831.42,0.00020781,2]
[386547046,1758377447270,-481.77,0.00020781,2]
[386547047,1758377447279,-486.46179726,0.00020781,2]
[386547048,1758377447289,-1074.54,0.00020781,2]
[386547049,1758377447298,-480.0,0.00020781,2]
[386547050,1758377447308,-170.91,0.00020782,2]
[386547051,1758377447318,-169.334,0.00020783,2]
[386547052,1758377447327,-480.0,0.00020784,2]
[386547053,1758377447336,-480.0,0.00020785,2]
[386547054,1758377447345,-480.0,0.00020785,2]
[386547055,1758377447355,-480.0,0.00020785,2]
[386547056,1758377447363,-480.0,0.00020785,2]
[386547057,1758377447372,-481.19761199,0.00020785,2]
[386547058,1758377447381,-480.0,0.00020785,2]
[386547059,1758377447391,-240.28720311,0.00020785,2]
[386547060,1758377447403,-239.71279689,0.00020785,2]
[386547061,1758377447413,-480.0,0.00020785,2]
[386547062,1758377447422,-480.0,0.00020785,2]
[386547063,1758377447431,-480.0,0.00020785,2]
[386547064,1758377447441,-168.0,0.00020785,2]
[386547065,1758377447450,-162.57391444,0.00020788,2]
[386547066,1758377447460,-649.64536209,0.00020788,2]
[386547067,1758377447469,-151.0,0.00020788,2]
[386547068,1758377447478,-151.0,0.00020788,2]
[386547069,1758377447488,-464.196253,0.00020788,2]
[386547070,1758377447497,-464.196253,0.00020788,2]
[386547071,1758377447506,-464.196253,0.00020788,2]
[386547072,1758377447514,-464.196253,0.00020788,2]
[386547073,1758377447522,-127.19493712,0.00020788,2]
[386547074,1758377447536,-24.51083988,0.00020788,2]
[386547075,1758377447607,-476.673541,0.00020788,2]
[386547076,1758377447626,-151.0,0.00020788,2]
[386547077,1758377447636,-476.673541,0.00020788,2]
[386547078,1758377447645,-151.0,0.00020788,2]
[386547079,1758377447655,-476.673541,0.00020788,2]
[386547080,1758377447664,-476.673541,0.00020788,2]
[386547081,1758377447673,-151.0,0.00020788,2]
[386547082,1758377447683,-211.424199,0.00020788,2]
[386547083,1758377447692,-151.0,0.00020788,2]
[386547084,1758377447702,-211.424199,0.00020788,2]
[386547085,1758377447712,-151.0,0.00020788,2]
[386547086,1758377447722,-211.424199,0.00020788,2]
[386547087,1758377447731,-151.0,0.00020788,2]
[386547088,1758377447741,-151.0,0.00020788,2]
[386547089,1758377447755,-211.424199,0.00020788,2]
[386547090,1758377447764,-151.0,0.00020788,2]
[386547091,1758377447773,-151.0,0.00020788,2]
[386547092,1758377447782,-151.0,0.00020788,2]
[386547093,1758377447792,-151.0,0.00020788,2]
[386547094,1758377447803,-151.0,0.00020788,2]
[386547095,1758377447812,-151.0,0.00020788,2]
[386547096,1758377447822,-151.0,0.00020788,2]
[386547097,1758377447832,-151.0,0.00020788,2]
[386547098,1758377447842,-271.675504,0.00020788,2]
[386547099,1758377447852,-151.0,0.00020788,2]
[386547100,1758377447861,-151.0,0.00020788,2]
[386547101,1758377447871,-151.0,0.00020788,2]
[386547102,1758377447880,-151.0,0.00020788,2]
[386547103,1758377447889,-151.0,0.00020788,2]
[386547104,1758377447899,-469.229695,0.00020788,2]
[386547105,1758377447908,-151.0,0.00020788,2]
[386547106,1758377447922,-469.229695,0.00020788,2]
[386547107,1758377447931,-151.0,0.00020788,2]
[386547108,1758377447940,-151.0,0.00020788,2]
[386547109,1758377447950,-469.229695,0.00020788,2]
[386547110,1758377447959,-469.229695,0.00020788,2]
[386547111,1758377447969,-151.0,0.00020788,2]
[386547112,1758377447979,-151.0,0.00020788,2]
[386547113,1758377447988,-151.0,0.00020788,2]
[386547114,1758377447997,-151.0,0.00020788,2]
[386547115,1758377448007,-151.0,0.00020788,2]
[386547116,1758377448017,-151.0,0.00020788,2]
[386547117,1758377448026,-151.0,0.00020788,2]
[386547118,1758377448035,-259.896,0.00020788,2]
[386547119,1758377448045,-151.0,0.00020788,2]
[386547120,1758377448055,-151.0,0.00020788,2]
[386547121,1758377448065,-151.0,0.00020788,2]
[386547122,1758377448075,-151.0,0.00020788,2]
[386547123,1758377448084,-151.0,0.00020788,2]
[386547124,1758377448093,-151.0,0.00020788,2]
[386547125,1758377448103,-151.0,0.00020788,2]
[386547126,1758377448112,-151.0,0.00020788,2]
[386547127,1758377448122,-218.539596,0.00020788,2]
[386547128,1758377448131,-231.988489,0.00020788,2]
[386547129,1758377448141,-218.539596,0.00020788,2]
[386547130,1758377448150,-218.539596,0.00020788,2]
[386547131,1758377448160,-218.539596,0.00020788,2]
[386547132,1758377448169,-151.0,0.00020788,2]
[386547133,1758377448179,-151.0,0.00020788,2]
[386547134,1758377448189,-151.0,0.00020788,2]
[386547135,1758377448198,-378.0,0.00020796,2]
[386547136,1758377448207,-800.0,0.000208,2]
[386547137,1758377448218,-168.0,0.0002083,2]
[386547138,1758377448228,-275.0,0.00020848,2]
[386547139,1758377448237,-173.22991493,0.00020858,2]
[386547140,1758377448247,-13656.78058338,0.00020873,3]
[386547150,1758377518566,653.36,0.0001921,2]
[386547151,1758377519038,1306.72,0.00020125,2]
[386547152,1758377536359,6912.43162014,0.00019736,2]
[386547153,1758377536428,3087.56837986,0.00019736,2]
[386547154,1758377595776,201.4739372,0.00019656,2]
[386547155,1758377603822,628.42,0.00019215,2]
[386547156,1758377604364,1256.83,0.0002013,2]
[386547157,1758377608919,1556.15018103,0.000199,2]
[386547158,1758377620397,-168.0,0.00020533,2]
[386547159,1758377620478,-300.0,0.0002058,2]
[386547160,1758377620552,-225.20363752,0.00020581,2]
[386547161,1758377620632,-223.53088293,0.00020581,2]
[386547162,1758377620709,-500.0,0.00020581,2]
[386547163,1758377620797,-500.0,0.00020581,2]
[386547164,1758377620885,-371.6238074,0.00020581,2]
[386547165,1758377620960,-500.0,0.00020581,2]
[386547166,1758377621036,-650.70107823,0.00020581,2]
[386547167,1758377621106,-361.09266354,0.00020581,2]
[386547168,1758377621186,-500.0,0.00020581,2]
[386547169,1758377621262,-409.72484605,0.00020581,2]
[386547170,1758377621345,-80.25616866,0.00020581,2]
[386547171,1758377621878,-419.74383134,0.00020581,2]
[386547172,1758377621960,-500.0,0.00020581,2]
[386547173,1758377622043,-500.0,0.00020581,2]
[386547174,1758377622120,-500.0,0.00020581,2]
[386547175,1758377622199,-500.0,0.00020581,2]
[386547176,1758377622275,-238.1336556,0.00020581,2]
[386547177,1758377622346,-500.0,0.00020581,2]
[386547178,1758377622415,-160.0,0.00020581,2]
[386547179,1758377622478,-500.0,0.00020581,2]
[386547180,1758377622548,-500.0,0.00020581,2]
[386547181,1758377622615,-164.25502612,0.00020581,2]
[386547182,1758377622945,-1035.74497388,0.00020581,2]
[386547183,1758377624935,-2691.88786171,0.00020582,2]
[386547184,1758377625004,-10000.01,0.00020582,2]
[386547185,1758377625076,-10000.01,0.00020582,2]
[386547186,1758377625136,-10000.01,0.00020582,2]
[386547187,1758377625215,-10000.01,0.00020582,2]
[386547188,1758377625288,-10000.01,0.00020582,2]
[386547189,1758377625367,-10000.01,0.00020582,2]
[386547190,1758377630385,-10000.01,0.00020582,2]
[386547191,1758377630576,-10000.01,0.00020582,2]
[386547192,1758377630856,-10000.01,0.00020582,2]
[386547193,1758377631057,-3731.83686147,0.00020582,2]
[386547194,1758377631138,-480.0,0.00020679,2]
[386547195,1758377631225,-480.0,0.00020679,2]
[386547196,1758377631302,-136.33627706,0.00020679,2]
[386547197,1758377631551,-343.66372294,0.00020679,2]
[386547198,1758377631621,-480.0,0.00020679,2]
[386547199,1758377631702,-1154.36,0.00020679,2]
[386547200,1758377631772,-482.08386174,0.00020679,2]
[386547201,1758377631838,-1438.09,0.00020679,2]
[386547202,1758377631906,-480.0,0.00020679,2]
[386547203,1758377631977,-480.0,0.00020679,2]
[386547204,1758377632115,-480.0,0.00020679,2]
[386547205,1758377632181,-2217.28,0.00020679,2]
[386547206,1758377632246,-480.0,0.00020679,2]
[386547207,1758377632308,-480.0,0.00020679,2]
[386547208,1758377632376,-480.0,0.00020679,2]
[386547209,1758377632445,-480.0,0.00020679,2]
[386547210,1758377632517,-285.45,0.00020679,2]
[386547211,1758377632791,-194.55,0.00020679,2]
[386547212,1758377632864,-480.0,0.00020679,2]
[386547213,1758377632936,-499.85,0.00020679,2]
[386547214,1758377633005,-525.28,0.00020679,2]
[386547215,1758377633073,-644.13,0.00020679,2]
[386547216,1758377633148,-2624.44,0.00020679,2]
[386547217,1758377633499,-63.51,0.00020679,2]
[386547218,1758377633571,-500.0,0.00020682,2]
[386547219,1758377633640,-151.0,0.00020682,2]
[386547220,1758377633711,-489.99665952,0.00020682,2]
[386547221,1758377633786,-2724.62,0.00020682,2]
[386547222,1758377633856,-480.0,0.00020682,2]
[386547223,1758377633930,-489.10721234,0.00020682,2]
[386547224,1758377634245,-1416.72,0.00020682,2]
[386547225,1758377634420,-294.8522717,0.00020682,2]
[386547226,1758377634487,-480.0,0.00020682,2]
[386547227,1758377634555,-480.0,0.00020682,2]
[386547228,1758377634627,-625.29805358,0.00020682,2]
[386547229,1758377634694,-481.49281961,0.00020682,2]
[386547230,1758377634762,-892.94,0.00020682,2]
[386547231,1758377634837,-166.17371022,0.00020682,2]
[386547232,1758377635102,-325.05628978,0.00020682,2]
[386547233,1758377635172,-480.0,0.00020682,2]
[386547234,1758377635240,-480.0,0.00020682,2]
[386547235,1758377635309,-481.53316112,0.00020682,2]
[386547236,1758377635378,-480.0,0.00020682,2]
[386547237,1758377635444,-480.0,0.00020682,2]
[386547238,1758377635512,-480.0,0.00020682,2]
[386547239,1758377635578,-480.0,0.00020682,2]
[386547240,1758377635642,-480.0,0.00020682,2]
[386547241,1758377635712,-480.0,0.00020682,2]
[386547242,1758377635779,-226.8310982,0.00020682,2]
[386547243,1758377638421,-253.1689018,0.00020682,2]
[386547244,1758377638431,-156.502325,0.00020682,2]
[386547245,1758377638486,-6.00393986,0.00020682,2]
[386547246,1758377638496,-473.99606014,0.00020682,2]
[386547247,1758377638551,-480.0,0.00020682,2]
[386547248,1758377638612,-480.0,0.00020682,2]
[386547249,1758377652849,218.9053262,0.00019707,2]
[386547250,1758377690726,604.42,0.00019212,2]
[386547251,1758377691014,1208.84,0.00020127,2]
[386547252,1758377750781,-300.0,0.00020678,2]
[386547253,1758377750843,-1200.0,0.00020678,2]
[386547254,1758377750919,-480.0,0.00020679,2]
[386547255,1758377750986,-481.92559012,0.00020679,2]
[386547256,1758377751056,-480.0,0.00020679,2]
[386547257,1758377751135,-525.18660199,0.00020679,2]
[386547258,1758377751208,-480.0,0.00020679,2]
[386547259,1758377751306,-480.0,0.00020679,2]
[386547260,1758377751386,-480.0,0.00020679,2]
[386547261,1758377751677,-767.01,0.00020679,2]
[386547262,1758377751758,-486.06319791,0.00020679,2]
[386547263,1758377751840,-480.0,0.00020679,2]
[386547264,1758377751908,-480.0,0.00020679,2]
[386547265,1758377751983,-480.0,0.00020679,2]
[386547266,1758377752055,-1175.35,0.00020679,2]
[386547267,1758377752115,-480.0,0.00020679,2]
[386547268,1758377752182,-485.74313108,0.00020679,2]
[386547269,1758377752602,-3473.1262478,0.00020681,2]
[386547270,1758377752675,-965.64393986,0.00020682,2]
[386547271,1758377752751,-480.0,0.00020682,2]
[386547272,1758377753050,-480.0,0.00020682,2]
[386547273,1758377753121,-483.45214899,0.00020682,2]
[386547274,1758377753193,-482.54867448,0.00020682,2]
[386547275,1758377753267,-480.0,0.00020682,2]
[386547276,1758377753340,-480.0,0.00020682,2]
[386547277,1758377753415,-267.77485361,0.00020682,2]
[386547278,1758377753491,-488.50494332,0.00020682,2]
[386547279,1758377753568,-480.0,0.00020682,2]
[386547280,1758377753645,-492.11,0.00020682,2]
[386547281,1758377753721,-480.0,0.00020682,2]
[386547282,1758377753802,-291.2287592,0.00020682,2]
[386547283,1758377753981,-188.7712408,0.00020682,2]
[386547284,1758377754065,-480.0,0.00020682,2]
[386547285,1758377754140,-480.0,0.00020682,2]
[386547286,1758377754218,-480.0,0.00020682,2]
[386547287,1758377754296,-492.13407604,0.00020682,2]
[386547288,1758377754374,-480.0,0.00020682,2]
[386547289,1758377754450,-480.0,0.00020682,2]
[386547290,1758377754527,-180.19772126,0.00020682,2]
[386547291,1758377754601,-480.0,0.00020682,2]
[386547292,1758377754672,-480.0,0.00020682,2]
[386547293,1758377754742,-480.0,0.00020682,2]
[386547294,1758377754817,-216.61605116,0.00020682,2]
[386547295,1758377754895,-12.16917621,0.00020683,2]
[386547296,1758377755194,-140.23346906,0.00020683,2]
[386547297,1758377755266,-415.34818396,0.00020683,2]
[386547298,1758377755332,-486.15244394,0.00020683,2]
[386547299,1758377755406,-480.0,0.00020683,2]
[386547300,1758377755476,-480.0,0.00020683,2]
[386547301,1758377755543,-480.0,0.00020683,2]
[386547302,1758377755612,-482.92102137,0.00020683,2]
[386547303,1758377755680,-359.67804712,0.00020683,2]
[386547304,1758377755753,-156.47161805,0.00020683,2]
[386547305,1758377755824,-157.64254627,0.00020683,2]
[386547306,1758377755893,-480.0,0.00020684,2]
[386547307,1758377755960,-497.12,0.00020684,2]
[386547308,1758377756343,-1289.8,0.00020684,2]
[386547309,1758377756426,-480.0,0.00020684,2]
[386547310,1758377756499,-480.0,0.00020684,2]
[386547311,1758377756572,-480.0,0.00020684,2]
[386547312,1758377756645,-480.0,0.00020684,2]
[386547313,1758377756717,-480.0,0.00020684,2]
[386547314,1758377756913,-1025.6,0.00020684,2]
[386547315,1758377757152,-569.21,0.00020684,2]
[386547316,1758377757222,-480.0,0.00020684,2]
[386547317,1758377757294,-2611.1,0.00020684,2]
[386547318,1758377757364,-1321.7,0.00020684,2]
[386547319,1758377757544,-35.99,0.00020684,2]
[386547320,1758377757612,-480.0,0.00020684,2]
[386547321,1758377757683,-480.0,0.00020684,2]
[386547322,1758377761982,-135.95117614,0.00020584,2]
[386547323,1758377762044,-390.57820864,0.00020584,2]
[386547324,1758377762054,-89.42179136,0.00020683,2]
[386547325,1758377762117,-152.47297689,0.00020683,2]
[386547326,1758377762127,-374.47906482,0.00020683,2]
[386547327,1758377762137,-7481.07795829,0.00020684,3]
[386547328,1758377774990,582.01,0.00019306,2]
[386547329,1758377775429,1164.01,0.00020226,2]
[386547330,1758377786654,8253.99,0.00019707,2]
[386547331,1758377786719,10000.01,0.00019707,2]
[386547332,1758377786785,8060.2778883,0.00019707,2]
[386547333,1758377796483,1504.2785083,0.000199,2]
[386547334,1758377822847,-480.0,0.00020679,2]
[386547335,1758377822921,-483.92151366,0.00020679,2]
[386547336,1758377823003,-1236.05,0.00020679,2]
[386547337,1758377823075,-480.0,0.00020679,2]
[386547338,1758377823156,-480.0,0.00020679,2]
[386547339,1758377823241,-480.0,0.00020679,2]
[386547340,1758377823320,-480.0,0.00020679,2]
[386547341,1758377823396,-479.62865664,0.00020679,2]
[386547342,1758377823469,-320.8096594,0.00020679,2]
[386547343,1758377823760,-159.1903406,0.00020679,2]
[386547344,1758377823841,-480.0,0.00020679,2]
[386547345,1758377823919,-480.0,0.00020682,2]
[386547346,1758377824004,-924.02,0.00020682,2]
[386547347,1758377824084,-480.0,0.00020682,2]
[386547348,1758377824169,-480.0,0.00020682,2]
[386547349,1758377824255,-480.0,0.00020682,2]
[386547350,1758377824475,-480.0,0.00020682,2]
[386547351,1758377824557,-307.30933101,0.00020682,2]
[386547352,1758377824637,-480.0,0.00020682,2]
[386547353,1758377824715,-28.21809819,0.00020683,2]
[386547354,1758377824941,435.4536034,0.00019684,2]
[386547355,1758377825012,662.6210771,0.00019684,2]
[386547356,1758377825174,-480.0,0.00020679,2]
[386547357,1758377825270,-442.5344604,0.00020683,2]
[386547358,1758377825344,-491.52247574,0.00020683,2]
[386547359,1758377825420,-370.09188797,0.00020683,2]
[386547360,1758377825491,-488.50358639,0.00020683,2]
[386547361,1758377825561,-471.54255488,0.00020683,2]
[386547362,1758377825632,-487.75832336,0.00020683,2]
[386547363,1758377825706,-488.02138071,0.00020683,2]
[386547364,1758377825780,-489.26699008,0.00020683,2]
[386547365,1758377825856,-480.0,0.00020683,2]
[386547366,1758377825936,-141.52668094,0.00020683,2]
[386547367,1758377826261,-338.47331906,0.00020683,2]
[386547368,1758377826339,-480.0,0.00020683,2]
[386547369,1758377826417,-483.48260203,0.00020683,2]
[386547370,1758377826495,-990.32,0.00020684,2]
[386547371,1758377826573,-480.0,0.00020684,2]
[386547372,1758377826651,-480.0,0.00020684,2]
[386547373,1758377826728,-1195.80815782,0.00020684,2]
[386547374,1758377826895,-300.0,0.00020678,2]
[386547375,1758377826974,-1103.84184218,0.00020684,2]
[386547376,1758377830291,-8573.74520078,0.00020684,3]
[386547377,1758377830954,-694.69072779,0.00020684,3]
[386547378,1758377831039,-8610.62854442,0.00020684,3]
[386547379,1758377831182,-1440.0,0.00020684,2]
[386547380,1758377831255,-7120.01,0.00020684,2]
[386547381,1758377831412,-480.0,0.00020685,2]
[386547382,1758377831490,-1073.49,0.00020685,2]
[386547383,1758377831571,-500.0,0.000207,2]
[386547384,1758377831654,-1780.7815787,0.00020773,2]
[386547385,1758377831737,-480.0,0.00020775,2]
[386547386,1758377831823,-480.0,0.00020775,2]
[386547387,1758377831894,-198.88469064,0.00020775,2]
[386547388,1758377832314,-13.69746132,0.00020775,2]
[386547389,1758377832395,-480.0,0.00020775,2]
[386547390,1758377832478,-3691.20507736,0.00020775,2]
[386547391,1758377832783,-1630.20492264,0.00020775,2]
[386547392,1758377832866,-862.15,0.00020775,2]
[386547393,1758377832948,-480.0,0.00020775,2]
[386547394,1758377833035,-1528.36,0.00020775,2]
[386547395,1758377833121,-480.0,0.00020776,2]
[386547396,1758377833775,-1163.90238396,0.00020684,2]
[386547397,1758377833869,-480.0,0.00020684,2]
[386547398,1758377833940,-38.58015472,0.00020684,2]
[386547399,1758377834012,-9923.04746132,0.00020684,2]
[386547400,1758377834022,-76.96253868,0.00020776,2]
[386547401,1758377859264,559.79,0.0001923,2]
[386547402,1758377859723,1119.57,0.00020146,2]
[386547403,1758377898335,237.5803272,0.00019717,2]
[386547404,1758377944492,538.41,0.00019236,2]
[386547405,1758377945111,1076.82,0.00020152,2]
[386547406,1758377967531,8147.1996728,0.00019683,2]
[386547407,1758377967599,649.3459202,0.00019683,2]
[386547408,1758377978048,1454.13589155,0.000199,2]
[386547409,1758378023594,350.140884,0.00019677,2]
[386547410,1758378031114,-2743.78,0.00020581,2]
[386547411,1758378031196,-480.0,0.00020581,2]
[386547412,1758378031285,-1200.0,0.00020672,2]
[386547413,1758378031358,-502.00681975,0.00020673,2]
[386547414,1758378031784,-500.0,0.00020673,2]
[386547415,1758378031857,-500.0,0.00020673,2]
[386547416,1758378031935,-500.0,0.00020673,2]
[386547417,1758378032005,-503.15772695,0.00020673,2]
[386547418,1758378032074,-500.0,0.00020673,2]
[386547419,1758378032153,-522.59623485,0.00020673,2]
[386547420,1758378032228,-150.0,0.00020673,2]
[386547421,1758378032303,-300.0,0.00020678,2]
[386547422,1758378032376,-160.0,0.00020679,2]
[386547423,1758378033669,-8744.87530085,0.00020679,2]
[386547424,1758378033867,-10000.01,0.00020679,2]
[386547425,1758378033972,-10000.01,0.00020679,2]
[386547426,1758378034141,-10000.01,0.00020679,2]
[386547427,1758378034227,-2372.00268787,0.00020679,2]
[386547428,1758378034311,-1371.63,0.00020679,2]
[386547429,1758378034397,-480.0,0.00020679,2]
[386547430,1758378034479,-480.0,0.00020679,2]
[386547431,1758378034560,-112.74462426,0.00020679,2]
[386547432,1758378034867,-367.25537574,0.00020679,2]
[386547433,1758378034876,-480.0,0.00020679,2]
[386547434,1758378034886,-480.0,0.00020679,2]
[386547435,1758378034896,-480.0,0.00020679,2]
[386547436,1758378034909,-480.0,0.00020679,2]
[386547437,1758378034919,-480.0,0.00020679,2]
[386547438,1758378034928,-480.0,0.00020679,2]
[386547439,1758378034938,-1936.37731213,0.00020679,2]
[386547440,1758378035115,-704.60268787,0.00020679,2]
[386547441,1758378035126,-554.42,0.00020679,2]
[386547442,1758378035135,-480.0,0.00020679,2]
[386547443,1758378035145,-1389.42,0.00020679,2]
[386547444,1758378035154,-480.0,0.00020679,2]